bitfinex/quotes_SOLUSD_20250829
["timestamp","ask_amount","ask_price","bid_price","bid_amount"]
[1756436625728,37.52,215.68,215.62,0.28432314]
[1756436625729,6.89321391,215.66,215.63,0.67]
[1756436626028,6.89321391,215.65,215.64,0.67]
[1756436626920,6.89321391,215.65,215.62,0.95432314]
[1756436627119,6.89321391,215.65,215.63,0.67]
[1756436627521,6.89321391,215.64,215.62,0.03]
[1756436627706,6.89321391,215.63,215.62,0.7]
[1756436628115,6.89321391,215.63,215.62,0.03]
[1756436628624,6.89321391,215.64,215.62,0.7]
[1756436629212,6.89321391,215.64,215.62,0.03]
[1756436629428,11.53072628,215.64,215.62,0.03]
[1756436630213,11.53072628,215.64,215.62,0.7]
[1756436630405,11.53072628,215.64,215.62,0.03]
[1756436631353,8.31211771,215.63,215.62,0.03]
[1756436631898,45.81211771,215.63,215.62,0.03]
[1756436632523,50.44969133,215.63,215.62,0.03]
[1756436632727,26.0,215.6,215.59,0.03]
[1756436632901,33.63396806,215.6,215.59,0.03]
[1756436633106,34.31396806,215.6,215.59,0.03]
[1756436634623,38.95218698,215.6,215.59,0.03]
[1756436635407,41.648867,215.6,215.59,0.03]
[1756436635734,40.968867,215.6,215.59,0.03]
[1756436635908,41.648867,215.6,215.59,0.03]
[1756436636819,79.148867,215.6,215.59,0.03]
[1756436637314,78.468867,215.6,215.59,0.03]
[1756436639222,3.43112902,215.6,215.59,0.7]
[1756436639427,32.89951906,215.62,215.59,0.7]
[1756436639629,10.33740759,215.61,215.59,0.7]
[1756436639814,6.89951906,215.61,215.59,0.7]
[1756436640131,63.5,215.62,215.59,0.7]
[1756436640335,10.33743414,215.61,215.59,0.7]
[1756436640524,6.89951906,215.61,215.59,0.7]
[1756436640830,3.3,215.59,215.58,0.2]
[1756436641026,10.19951906,215.59,215.58,0.2]
[1756436641227,18.9669166,215.59,215.58,0.2]
[1756436641638,56.4669166,215.59,215.58,0.2]
[1756436641808,55.7769166,215.59,215.58,0.2]
[1756436642131,53.02795312,215.59,215.58,0.2]
[1756436642510,56.46713268,215.59,215.57,0.03]
[1756436642710,10.33869862,215.58,215.57,0.03]
[1756436643204,26.0,215.55,215.47,6.89951906]
[1756436643408,3.3,215.59,215.54,6.89951906]
[1756436643714,14.83800876,215.59,215.55,0.68]
[1756436643914,3.3,215.59,215.56,0.68]
[1756436644111,26.0,215.58,215.57,0.68]
[1756436644737,3.3,215.59,215.57,0.68]
[1756436644911,3.3,215.59,215.58,0.68]
[1756436645314,3.3,215.59,215.58,5.31864922]
[1756436645515,0.06,215.58,215.57,0.03]
[1756436646118,0.06,215.58,215.57,0.71]
[1756436647019,6.95951906,215.58,215.57,0.03]
[1756436647347,12.28816828,215.58,215.57,0.03]
[1756436647523,15.72861945,215.58,215.57,0.03]
[1756436647727,29.32421346,215.58,215.57,0.03]
[1756436650627,53.20861945,215.58,215.57,0.03]
[1756436652741,53.21675464,215.58,215.57,0.03]
[1756436653043,66.81234865,215.58,215.57,0.03]
[1756436653247,26.0,215.55,215.54,0.03]
[1756436653542,78.46740024,215.55,215.54,0.03]
[1756436653727,79.15740024,215.55,215.54,0.03]
[1756436653924,40.98740024,215.55,215.54,0.03]
[1756436654130,78.46740024,215.55,215.54,0.03]
[1756436654652,79.15740024,215.55,215.54,0.03]
[1756436654830,27.39463213,215.53,215.52,1e-08]
[1756436655036,68.32321849,215.53,215.52,1e-08]
[1756436655230,70.87398649,215.53,215.52,1e-08]
[1756436655544,31.13419275,215.53,215.52,1e-08]
[1756436655723,68.61419275,215.53,215.52,1e-08]
[1756436656420,31.13419275,215.53,215.52,1e-08]
[1756436656632,68.61419275,215.53,215.52,1e-08]
[1756436656825,66.75342475,215.53,215.52,1e-08]
[1756436657020,68.61419275,215.53,215.52,1e-08]
[1756436657228,38.03371181,215.53,215.52,1e-08]
[1756436657446,72.48824166,215.53,215.52,1e-08]
[1756436657861,68.61419275,215.53,215.52,1e-08]
[1756436658051,75.79803495,215.53,215.52,1e-08]
[1756436658233,13.59559401,215.52,215.44,0.91679107]
[1756436658434,32.89951906,215.45,215.44,0.91679107]
[1756436658653,73.82810542,215.45,215.44,0.91679107]
[1756436659367,71.13902926,215.45,215.44,0.91679107]
[1756436659668,71.82902926,215.45,215.44,0.91679107]
[1756436659963,54.19173224,215.45,215.44,0.91679107]
[1756436660142,64.0660714,215.45,215.44,0.91679107]
[1756436660536,26.0,215.42,215.39,0.68]
[1756436660741,4.2104429,215.4,215.39,0.68]
[1756436660965,4.2104429,215.4,215.39,0.18]
[1756436661145,4.2104429,215.4,215.34,8.0]
[1756436661347,37.48,215.39,215.34,8.0]
[1756436661652,37.48,215.39,215.32,4.2104429]
[1756436661851,42.12284281,215.39,215.32,4.2104429]
[1756436662051,4.64231001,215.41,215.34,4.2104429]
[1756436662278,4.2104429,215.4,215.34,4.2104429]
[1756436662568,41.6904429,215.4,215.31,0.28432314]
[1756436662741,41.6904429,215.4,215.34,4.2104429]
[1756436662936,41.6904429,215.4,215.35,0.68]
[1756436663140,4.2104429,215.39,215.36,0.68]
[1756436663369,4.2104429,215.39,215.37,0.68]
[1756436663674,4.2104429,215.39,215.35,0.68]
[1756436663969,8.8532358,215.39,215.36,0.68]
[1756436664148,46.3332358,215.39,215.37,0.68]
[1756436664748,46.3332358,215.39,215.34,0.71]
[1756436664949,4.2104429,215.35,215.34,0.03]
[1756436665966,26.0,215.38,215.34,4.9204429]
[1756436666278,26.0,215.38,215.35,0.68]
[1756436666444,26.0,215.38,215.36,0.68]
[1756436666754,26.0,215.38,215.37,0.68]
[1756436667139,0.69,215.46,215.37,4.8904429]
[1756436667472,4.2104429,215.44,215.38,4.8904429]
[1756436667657,4.2104429,215.43,215.38,0.68]
[1756436667865,4.64209451,215.42,215.39,0.68]
[1756436668062,4.2104429,215.43,215.39,0.68]
[1756436668257,8.85237251,215.43,215.39,0.68]
[1756436669460,4.2104429,215.42,215.39,0.68]
[1756436669645,4.2104429,215.4,215.35,0.68]
[1756436669845,8.85323699,215.39,215.36,0.68]
[1756436670065,4.64279409,215.39,215.36,0.68]
[1756436670369,8.85323699,215.39,215.36,0.68]
[1756436670569,34.85300206,215.4,215.36,0.7]
[1756436670877,4.2104429,215.37,215.34,0.03]
[1756436671475,37.48,215.37,215.35,0.7]
[1756436671677,41.6904429,215.39,215.35,0.7]
[1756436671977,8.85339953,215.38,215.34,0.03]
[1756436672179,8.85339953,215.38,215.34,0.73]
[1756436672972,4.2104429,215.38,215.34,0.73]
[1756436673665,4.2104429,215.37,215.34,0.03]
[1756436673864,8.85404633,215.35,215.34,0.03]
[1756436674874,37.48,215.36,215.34,0.03]
[1756436675257,47.03385805,215.36,215.34,0.03]
[1756436675782,4.9104429,215.35,215.34,0.03]
[1756436676276,8.85404633,215.35,215.34,0.03]
[1756436676568,47.03404633,215.35,215.34,0.03]
[1756436677154,37.48,215.35,215.34,0.03]
[1756436677349,0.7,215.39,215.34,0.03]
[1756436677551,26.0,215.35,215.34,0.03]
[1756436678276,47.03404633,215.35,215.34,0.03]
[1756436678684,42.82360343,215.35,215.34,0.03]
[1756436678977,47.03404633,215.35,215.34,0.03]
[1756436679573,37.48,215.36,215.34,0.03]
[1756436679965,41.6904429,215.36,215.34,0.03]
[1756436680154,46.3339769,215.36,215.34,0.03]
[1756436680549,4.2104429,215.35,215.34,0.03]
[1756436681858,41.6904429,215.36,215.34,0.03]
[1756436682059,37.48,215.36,215.34,0.03]
[1756436682261,37.48,215.36,215.34,0.73]
[1756436682871,4.2104429,215.37,215.34,0.03]
[1756436683182,4.2104429,215.36,215.34,0.03]
[1756436684266,8.85391853,215.36,215.34,0.03]
[1756436684664,38.18,215.37,215.34,0.03]
[1756436684665,42.12321122,215.37,215.34,0.03]
[1756436684873,37.48,215.37,215.34,0.03]
[1756436685068,63.48,215.37,215.34,0.03]
[1756436685462,0.06,215.39,215.35,4.9104429]
[1756436685664,0.06,215.39,215.36,0.7]
[1756436686682,0.06,215.39,215.38,4.2104429]
[1756436686879,0.06,215.39,215.38,8.28432314]
[1756436687395,0.06,215.39,215.38,5.19476604]
[1756436688271,0.06,215.39,215.38,23.43331668]
[1756436690378,0.06,215.39,215.35,0.7]
[1756436690573,4.2704429,215.39,215.33,0.28432314]
[1756436690773,4.2704429,215.39,215.32,17.80603691]
[1756436690977,0.76,215.39,215.33,0.14216157]
[1756436691177,4.2104429,215.38,215.34,0.14216157]
[1756436691488,0.76,215.39,215.31,0.03]
[1756436691489,0.7,215.37,215.31,0.03]
[1756436691691,0.06,215.39,215.36,4.2104429]
[1756436691890,0.06,215.42,215.39,13.87991715]
[1756436692066,0.06,215.42,215.41,17.80603691]
[1756436692264,0.06,215.42,215.41,4.49476604]
[1756436693194,0.06,215.42,215.41,0.28432314]
[1756436693386,0.06,215.42,215.41,8.28432314]
[1756436693574,0.06,215.42,215.41,8.0]
[1756436694089,0.06,215.42,215.4,0.28432314]
[1756436694280,4.70212644,215.42,215.38,4.2104429]
[1756436694483,0.7,215.41,215.37,4.2104429]
[1756436694671,4.70212644,215.42,215.37,4.2104429]
[1756436694871,0.7,215.41,215.37,4.2104429]
[1756436695288,0.7,215.4,215.37,4.2104429]
[1756436695493,0.76,215.42,215.38,4.2104429]
[1756436695787,0.06,215.42,215.4,0.28432314]
[1756436696591,4.9104429,215.41,215.26,2.59227776]
[1756436696795,26.0,215.37,215.31,4.2404429]
[1756436697095,26.7,215.37,215.31,4.2404429]
[1756436697395,5.34346371,215.36,215.31,4.2404429]
[1756436697580,0.7,215.35,215.31,4.2404429]
[1756436697966,0.7,215.34,215.31,0.03]
[1756436698472,4.2104429,215.33,215.31,0.03]
[1756436698781,7.65887377,215.32,215.31,0.03]
[1756436699094,4.14843087,215.32,215.31,0.03]
[1756436699300,26.0,215.33,215.31,0.03]
[1756436699482,5.34381,215.35,215.31,0.03]
[1756436699684,0.7,215.35,215.31,0.03]
[1756436699886,0.7,215.34,215.31,0.03]
[1756436700401,0.72,215.34,215.31,0.03]
[1756436700990,64.22,215.37,215.31,4.2404429]
[1756436701182,0.72,215.4,215.34,4.2104429]
[1756436701406,3.50857237,215.39,215.34,4.2104429]
[1756436701586,4.16857237,215.38,215.34,4.2104429]
[1756436701788,0.72,215.38,215.34,4.2104429]
[1756436702006,0.72,215.38,215.34,4.64375144]
[1756436702191,30.2104429,215.36,215.31,8.03]
[1756436702503,30.2104429,215.32,215.31,0.03]
[1756436702713,36.76211375,215.32,215.31,0.03]
[1756436702996,37.48211375,215.32,215.31,0.03]
[1756436703207,37.48211375,215.32,215.28,0.03]
[1756436703511,30.2104429,215.29,215.28,0.03]
[1756436703700,41.40640415,215.29,215.28,0.03]
[1756436703904,38.6778407,215.29,215.28,0.03]
[1756436704201,42.12605628,215.29,215.28,0.03]
[1756436704599,49.17087661,215.32,215.28,0.03]
[1756436704600,26.0,215.32,215.28,0.03]
[1756436704790,0.72,215.31,215.28,0.03]
[1756436705191,4.2104429,215.29,215.28,0.03]
[1756436705408,33.65827384,215.29,215.28,0.03]
[1756436705583,39.02317142,215.29,215.28,0.03]
[1756436707285,13.02317142,215.29,215.28,0.03]
[1756436707904,26.0,215.27,215.26,0.03]
[1756436708095,36.75666518,215.27,215.26,0.03]
[1756436708298,34.37827384,215.27,215.26,0.03]
[1756436708510,37.47421901,215.27,215.26,0.03]
[1756436708706,34.37827384,215.27,215.26,0.03]
[1756436708884,30.16783094,215.27,215.26,0.03]
[1756436709088,34.37827384,215.27,215.26,0.03]
[1756436709413,43.87192196,215.27,215.26,0.03]
[1756436710488,81.55192196,215.27,215.26,0.03]
[1756436711183,78.10409102,215.27,215.26,0.03]
[1756436711607,81.54093017,215.27,215.26,0.03]
[1756436711986,115.2635159,215.27,215.13,2.42432669]
[1756436712193,4.2104429,215.16,215.12,0.2]
[1756436713083,4.64717681,215.19,215.12,0.2]
[1756436713402,4.2104429,215.15,215.1,4.2104429]
[1756436713705,4.2104429,215.15,215.1,0.2]
[1756436713930,4.2104429,215.14,215.08,6.63514929]
[1756436714114,0.72,215.17,215.08,2.42470639]
[1756436714291,4.2104429,215.17,215.09,0.2]
[1756436714618,4.2104429,215.14,215.07,2.42493896]
[1756436714790,4.2104429,215.14,215.09,8.0]
[1756436714988,4.2104429,215.13,215.09,8.0]
[1756436715415,4.9304429,215.14,215.09,8.0]
[1756436715715,4.2104429,215.13,215.09,8.0]
[1756436716099,4.9304429,215.13,215.09,8.0]
[1756436716712,8.72,215.18,215.11,4.2104429]
[1756436716920,4.2104429,215.19,215.13,4.2104429]
[1756436717115,4.9304429,215.21,215.15,4.2104429]
[1756436717811,4.2104429,215.16,215.09,8.0]
[1756436718010,0.72,215.16,215.1,4.2104429]
[1756436718186,4.2104429,215.15,215.09,12.2104429]
[1756436718396,4.2104429,215.13,215.09,8.0]
[1756436718587,4.9304429,215.12,215.06,83.2104429]
[1756436718887,0.72,215.12,215.03,5.05513889]
[1756436719221,4.64878434,215.11,215.05,4.2104429]
[1756436719393,4.2104429,215.1,215.04,4.2104429]
[1756436719591,4.2104429,215.1,215.03,7.27597122]
[1756436719894,38.5,215.13,215.08,4.2104429]
[1756436720106,4.2104429,215.1,215.03,2.42546189]
[1756436720303,4.2104429,215.1,215.04,4.2104429]
[1756436720521,4.2104429,215.09,215.03,6.63590479]
[1756436720909,4.9304429,215.08,214.99,0.14216157]
[1756436721088,4.9304429,215.08,215.02,4.2104429]
[1756436721290,8.86009185,215.07,214.98,5.76834916]
[1756436721520,4.2104429,215.01,214.98,0.91679107]
[1756436721821,4.2104429,215.02,214.98,0.91679107]
[1756436722009,4.9304429,215.01,214.98,0.91679107]
[1756436722511,0.72,215.01,214.98,0.91679107]
[1756436723096,26.72,215.04,214.98,0.91679107]
[1756436723296,44.28096956,215.03,214.98,0.91679107]
[1756436723503,6.50096956,215.02,214.98,0.91679107]
[1756436723796,0.72,215.05,214.98,7.41776063]
[1756436724018,44.26096956,215.04,214.98,0.91679107]
[1756436724320,6.50096956,215.03,214.98,12.06932543]
[1756436724512,7.22096956,215.03,214.98,7.41776063]
[1756436724689,7.22096956,215.02,214.98,8.91679107]
[1756436725002,0.72,215.01,214.98,8.91679107]
[1756436725601,6.50096956,215.02,214.98,8.91679107]
[1756436725794,38.46,215.04,214.99,6.50096956]
[1756436726194,44.24096956,215.04,214.98,15.41776063]
[1756436726400,0.72,215.03,214.98,20.06935098]
[1756436726622,6.50096956,215.03,214.98,8.91679107]
[1756436726810,7.22096956,215.02,214.98,8.91679107]
[1756436727007,6.50096956,215.03,214.98,8.91679107]
[1756436727316,0.72,215.11,215.02,6.50096956]
[1756436727617,0.72,215.11,215.07,6.50096956]
[1756436727618,5.3688946,215.11,215.07,6.50096956]
[1756436727820,6.50096956,215.08,214.99,0.48432314]
[1756436728023,0.72,215.07,214.99,0.48432314]
[1756436728227,0.72,215.07,214.98,8.91679107]
[1756436728228,38.48,215.07,214.98,8.91679107]
[1756436728529,38.48,215.07,214.98,0.91679107]
[1756436728530,6.50096956,214.99,214.98,0.91679107]
[1756436728902,7.22096956,214.99,214.98,0.91679107]
[1756436729330,11.87234869,214.99,214.9,2.42687892]
[1756436729638,26.0,214.96,214.88,6.50096956]
[1756436729931,6.50096956,214.93,214.87,6.50096956]
[1756436730101,7.22096956,214.93,214.87,6.50096956]
[1756436730301,6.50096956,214.89,214.86,0.2]
[1756436730616,6.50096956,214.9,214.86,0.2]
[1756436730821,7.18096956,214.9,214.86,0.2]
[1756436731001,0.68,214.9,214.86,0.2]
[1756436731197,7.18096956,214.9,214.86,0.2]
[1756436731442,6.50096956,214.87,214.86,0.2]
[1756436731726,0.68,214.89,214.86,0.2]
[1756436732025,0.68,214.9,214.86,0.2]
[1756436732412,7.18096956,214.9,214.86,0.2]
[1756436733031,6.50096956,214.91,214.86,0.2]
[1756436733227,11.83363437,214.94,214.87,6.50096956]
[1756436733430,11.83363437,214.94,214.89,6.50096956]
[1756436733431,43.29266481,214.94,214.89,6.50096956]
[1756436733933,6.50096956,214.9,214.86,0.2]
[1756436734127,0.68,214.93,214.86,0.2]
[1756436734336,6.50096956,214.91,214.86,0.2]
[1756436734515,7.18096956,214.9,214.86,8.2]
[1756436734716,6.50096956,214.9,214.86,8.2]
[1756436735027,6.50096956,214.87,214.86,0.2]
[1756436735331,0.68,214.89,214.86,0.2]
[1756436735634,35.96096956,214.9,214.86,0.2]
[1756436735812,7.18096956,214.9,214.86,0.2]
[1756436736139,0.68,214.89,214.86,0.2]
[1756436737310,4.6531106,214.91,214.86,6.70096956]
[1756436737513,11.83408016,214.91,214.86,0.2]
[1756436737711,11.15408016,214.91,214.86,0.2]
[1756436737936,0.68,214.9,214.86,0.2]
[1756436738142,7.18096956,214.9,214.86,0.2]
[1756436738842,4.65354367,214.89,214.86,0.2]
[1756436740522,5.33354367,214.89,214.86,0.2]
[1756436740718,4.65354367,214.89,214.86,0.2]
[1756436740925,0.68,214.88,214.86,0.2]
[1756436741357,26.0,214.84,214.77,2.42852487]
[1756436741549,26.0,214.84,214.75,6.50096956]
[1756436741550,6.50096956,214.81,214.75,6.50096956]
[1756436741721,6.50096956,214.79,214.73,0.71]
[1756436742060,6.50096956,214.82,214.76,6.50096956]
[1756436742229,6.50096956,214.82,214.73,0.71]
[1756436742431,0.68,214.83,214.74,0.71]
[1756436742751,6.50096956,214.79,214.7,0.71]
[1756436742954,11.83689655,214.78,214.72,6.50096956]
[1756436743160,11.83689655,214.78,214.7,0.71]
[1756436743322,6.50096956,214.75,214.7,0.71]
[1756436743524,5.33592699,214.78,214.7,0.71]
[1756436743525,6.50096956,214.76,214.71,0.28432314]
[1756436743750,6.50096956,214.77,214.71,6.7852927]
[1756436743973,32.500969,214.84,214.73,6.50096956]
[1756436744150,0.68,214.85,214.8,6.50096956]
[1756436744444,6.50096956,214.87,214.8,14.50096956]
[1756436744650,6.50097,214.88,214.83,6.50096956]
[1756436744830,6.50096956,214.85,214.8,8.0]
[1756436745037,7.18096956,214.85,214.8,8.0]
[1756436745233,7.18096956,214.85,214.8,14.50096956]
[1756436745434,11.83538675,214.85,214.8,8.0]
[1756436745631,11.83538675,214.85,214.74,0.71]
[1756436745632,6.50096956,214.81,214.74,0.71]
[1756436745825,6.50096956,214.82,214.76,6.50096956]
[1756436746039,6.50096956,214.83,214.77,6.50096956]
[1756436746474,26.68,214.87,214.8,6.50096956]
[1756436746626,6.50096956,214.86,214.8,6.50096956]
[1756436747152,11.15518038,214.86,214.73,4.65701113]
[1756436747327,6.50096956,214.83,214.77,6.50096956]
[1756436747523,0.68,214.85,214.78,6.50096956]
[1756436747524,6.50096956,214.84,214.78,6.50096956]
[1756436748230,0.68,214.87,214.81,6.50096956]
[1756436748427,38.1,214.9,214.84,6.50096956]
[1756436748631,6.50096956,214.85,214.78,0.71]
[1756436748833,6.50096956,214.83,214.77,6.50096956]
[1756436749057,7.18096956,214.84,214.78,6.50096956]
[1756436749257,31.72770192,214.95,214.81,6.50096956]
[1756436749446,0.68,214.89,214.83,6.50096956]
[1756436749638,0.68,214.89,214.84,6.50096956]
[1756436750241,7.18096956,214.91,214.84,6.50096956]
[1756436750558,7.18096956,214.91,214.8,0.28432314]
[1756436750559,6.50096956,214.93,214.87,6.50096956]
[1756436750742,7.18096956,214.94,214.88,6.50096956]
[1756436751281,0.68,214.98,214.92,6.50096956]
[1756436751442,0.68,214.98,214.93,6.50096956]
[1756436751755,0.68,214.98,214.92,6.50096956]
[1756436752257,0.68,214.98,214.89,8.99432314]
[1756436752561,7.18096956,214.98,214.92,6.50096956]
[1756436753143,11.83261566,214.98,214.89,8.99432314]
[1756436753455,11.83261566,214.98,214.92,6.50096956]
[1756436753759,6.50096956,215.0,214.93,6.50096956]
[1756436754063,0.68,214.99,214.92,6.50096956]
[1756436754442,6.50096956,214.95,214.89,14.50096956]
[1756436754648,6.50096956,214.94,214.89,8.0]
[1756436754846,6.50096956,214.91,214.85,6.50096956]
[1756436755147,6.50096956,214.92,214.86,6.50096956]
[1756436755354,33.18096956,214.93,214.87,6.50096956]
[1756436755963,0.68,214.93,214.84,0.28432314]
[1756436756260,6.50096956,214.88,214.82,6.50096956]
[1756436756472,7.18096956,214.91,214.85,6.50096956]
[1756436756837,32.50096956,214.92,214.86,6.50096956]
[1756436757458,11.15388696,214.92,214.86,6.50096956]
[1756436758158,7.18096956,214.91,214.85,6.50096956]
[1756436758361,6.50096956,214.9,214.84,6.50096956]
[1756436758551,0.68,214.91,214.86,6.50096956]
[1756436758947,6.50096956,214.92,214.86,7.21096956]
[1756436759141,6.500969,214.93,214.86,0.71]
[1756436759541,11.15374638,214.93,214.86,0.71]
[1756436759848,17.65471594,214.93,214.87,6.50096956]
[1756436760457,6.500969,214.93,214.92,6.50096956]
[1756436760657,6.500969,214.93,214.92,7.4852927]
[1756436760841,6.500969,214.93,214.87,5.35397682]
[1756436761042,6.50096956,214.95,214.89,6.50096956]
[1756436761241,0.67,214.96,214.91,6.50096956]
[1756436761950,6.50096956,214.92,214.82,0.7]
[1756436762252,6.50096956,214.92,214.76,224.14061947]
[1756436762253,6.50096956,214.87,214.81,6.50096956]
[1756436762648,6.50096956,214.87,214.79,0.7]
[1756436762649,6.50096956,214.86,214.79,0.7]
[1756436762957,6.50096956,214.86,214.8,6.50096956]
[1756436763155,39.992864,214.92,214.85,6.50096956]
[1756436763356,6.48711201,214.91,214.86,6.50096956]
[1756436763670,0.67,214.91,214.86,6.50096956]
[1756436763971,26.0,214.92,214.85,6.50096956]
[1756436764166,4.65332712,214.9,214.85,6.50096956]
[1756436764362,5.32332712,214.9,214.85,6.50096956]
[1756436764743,6.50096956,214.88,214.79,0.14216157]
[1756436764945,6.50096956,214.85,214.79,8.0]
[1756436765155,6.50096956,214.85,214.79,14.50096956]
[1756436765554,0.67,214.86,214.78,6.53096956]
[1756436765555,6.50096956,214.84,214.78,6.53096956]
[1756436766165,4.65527675,214.81,214.78,0.03]
[1756436766366,6.50096956,214.8,214.78,0.03]
[1756436766548,6.50096956,214.79,214.78,0.03]
[1756436766744,9.91681657,214.79,214.78,0.03]
[1756436766972,10.58681657,214.79,214.78,0.03]
[1756436768065,6.50096956,214.81,214.78,0.03]
[1756436768670,0.67,214.8,214.78,0.03]
[1756436768852,7.17096956,214.8,214.78,0.03]
[1756436769564,7.17096956,214.79,214.78,0.03]
[1756436769872,10.59013094,214.79,214.78,0.03]
[1756436770259,15.24584116,214.79,214.78,0.03]
[1756436771852,18.32350468,214.79,214.78,0.03]
[1756436772968,22.20439456,214.79,214.78,0.03]
[1756436773454,26.0,214.76,214.65,6.50096956]
[1756436773656,6.50096956,214.7,214.63,6.50096956]
[1756436774060,6.50096956,214.69,214.63,6.50096956]
[1756436774363,6.50096956,214.69,214.58,4.46210953]
[1756436774364,11.15841448,214.71,214.65,6.50096956]
[1756436774767,6.50096956,214.7,214.64,7.20096956]
[1756436774974,6.50096956,214.7,214.58,4.46210953]
[1756436774975,6.50096956,214.67,214.58,4.46210953]
[1756436775260,6.50096956,214.66,214.6,6.50096956]
[1756436775457,6.50096956,214.69,214.63,6.50096956]
[1756436775679,44.64096956,214.7,214.61,0.7]
[1756436775879,44.64096956,214.7,214.64,6.50096956]
[1756436776074,6.50096956,214.7,214.64,6.50096956]
[1756436776286,6.50096956,214.7,214.63,0.03]
[1756436776287,11.15903676,214.69,214.63,0.03]
[1756436776519,6.50096956,214.67,214.63,0.03]
[1756436776791,6.50096956,214.64,214.63,0.03]
[1756436776965,6.50096956,214.65,214.63,0.03]
[1756436777155,7.17096956,214.64,214.63,0.03]
[1756436777556,28.031875,214.66,214.63,0.03]
[1756436777779,38.14,214.65,214.63,0.03]
[1756436777980,0.67,214.65,214.63,0.03]
[1756436778179,7.17096956,214.65,214.63,0.03]
[1756436778395,26.0,214.67,214.63,0.03]
[1756436778595,38.16,214.68,214.63,6.53096956]
[1756436779176,0.67,214.67,214.63,0.03]
[1756436779374,7.17096956,214.67,214.63,0.03]
[1756436779574,38.14,214.68,214.63,6.53096956]
[1756436779892,38.14,214.71,214.67,6.50096956]
[1756436780096,6.50096956,214.69,214.63,6.53096956]
[1756436780281,6.50096956,214.69,214.63,4.68918091]
[1756436780478,7.17096956,214.7,214.64,6.50096956]
[1756436780679,6.50096956,214.69,214.63,0.03]
[1756436780999,44.66096956,214.72,214.65,6.50096956]
[1756436781193,6.50096956,214.73,214.67,6.50096956]
[1756436781380,0.67,214.74,214.66,6.50096956]
[1756436781381,6.50096956,214.72,214.66,6.50096956]
[1756436783408,0.67,214.71,214.63,0.03]
[1756436783698,6.50096956,214.7,214.64,6.50096956]
[1756436784397,6.50096956,214.66,214.63,0.03]
[1756436784583,6.50096956,214.64,214.63,0.03]
[1756436784906,7.17096956,214.64,214.63,0.03]
[1756436785102,0.67,214.64,214.63,0.03]
[1756436785287,32.50096956,214.65,214.63,0.03]
[1756436785799,59.56387824,214.95,214.64,0.7]
[1756436785800,0.67,214.72,214.64,0.7]
[1756436785989,71.27096956,214.72,214.66,6.50096956]
[1756436786187,6.50096956,214.69,214.63,6.53096956]
[1756436786387,6.50096956,214.7,214.64,6.50096956]
[1756436786592,7.17096956,214.71,214.65,6.50096956]
[1756436786787,11.82842412,214.71,214.65,6.50096956]
[1756436786989,11.82842412,214.71,214.63,4.68908431]
[1756436787201,6.50096956,214.7,214.64,6.50096956]
[1756436787507,6.50096956,214.7,214.64,14.50096956]
[1756436787696,6.50096956,214.68,214.64,8.0]
[1756436787901,6.50096956,214.66,214.63,0.03]
[1756436788095,6.50096956,214.65,214.63,0.03]
[1756436788283,0.67,214.65,214.63,0.03]
[1756436788486,7.17096956,214.65,214.63,0.03]
[1756436788688,6.50096956,214.67,214.63,0.03]
[1756436788897,6.50096956,214.66,214.63,0.03]
[1756436789207,7.17096956,214.66,214.63,0.03]
[1756436789380,0.67,214.69,214.63,0.73]
[1756436789582,38.08,214.71,214.64,6.50096956]
[1756436789785,44.58096956,214.71,214.65,6.50096956]
[1756436790394,49.23849876,214.71,214.65,6.50096956]
[1756436790603,6.50096956,214.69,214.63,6.53096956]
[1756436790984,0.72,214.68,214.63,0.03]
[1756436791208,6.50096956,214.66,214.63,0.03]
[1756436791588,7.22096956,214.66,214.63,0.03]